bitfinex-derivatives/quotes_SOLF0:USTF0_20250428
["timestamp","ask_amount","ask_price","bid_price","bid_amount"]
[1745856258141,6.841,146.13,146.1,6.8418]
[1745856258333,23.81474422,146.14,146.05,27.36]
[1745856258635,23.81474422,146.14,146.07,6.8434]
[1745856258833,3.9114,146.13,146.05,27.36]
[1745856259034,3.9114,146.13,146.1,6.8418]
[1745856259237,3.9114,146.13,146.05,27.36]
[1745856259743,3.9114,146.13,146.11,6.8416]
[1745856260036,3.9114,146.13,146.05,27.36]
[1745856260239,6.8413,146.12,146.09,6.8423]
[1745856260436,3.9114,146.13,146.05,27.36]
[1745856261342,10.7524,146.13,146.1,6.8422]
[1745856261932,3.9114,146.13,146.05,27.36]
[1745856262236,2.0363,146.12,146.05,27.36]
[1745856262531,6.8424,146.1,146.07,6.8433]
[1745856262835,2.0363,146.12,146.05,27.36]
[1745856263339,6.842,146.11,146.08,6.8427]
[1745856263740,6.8423,146.1,146.07,6.8434]
[1745856264142,2.0363,146.12,146.05,27.36]
[1745856264438,6.8421,146.11,146.07,6.8435]
[1745856264644,2.0363,146.12,146.07,6.8435]
[1745856264844,25.85104422,146.12,146.05,27.36]
[1745856265145,25.85104422,146.12,146.06,6.8438]
[1745856265146,6.8429,146.09,146.06,6.8438]
[1745856265944,27.36,146.11,146.05,27.36]
[1745856266341,6.8425,146.1,146.05,27.36]
[1745856267041,6.8425,146.1,146.06,6.8437]
[1745856267246,27.36,146.11,146.05,27.36]
[1745856267541,27.36,146.11,146.06,6.8439]
[1745856267838,27.36,146.11,146.05,27.36]
[1745856268245,6.8424,146.1,146.07,6.8436]
[1745856268744,27.36,146.11,146.05,27.36]
[1745856268945,6.8429,146.09,146.06,6.8439]
[1745856269245,6.8429,146.09,146.05,27.36]
[1745856269446,6.8429,146.09,146.06,6.8438]
[1745856270047,6.8429,146.09,146.07,6.8436]
[1745856270846,6.8429,146.09,146.06,6.8439]
[1745856271049,6.8429,146.09,146.05,27.36]
[1745856271444,6.8429,146.09,146.06,6.8438]
[1745856272348,6.8429,146.09,146.07,6.8435]
[1745856272548,6.8429,146.09,146.05,27.36]
[1745856272942,6.8432,146.08,146.06,6.8439]
[1745856273149,6.8432,146.08,146.05,27.36]
[1745856273346,27.36,146.11,146.01,387.36]
[1745856273546,6.8434,146.08,146.05,6.8444]
[1745856273847,27.36,146.11,146.01,27.36]
[1745856274148,6.8435,146.08,146.05,6.8445]
[1745856274350,27.36,146.11,146.05,6.8445]
[1745856274647,23.81474422,146.1,146.01,27.36]
[1745856275047,23.81474422,146.07,145.98,519.88]
[1745856275353,6.1222,146.06,145.98,27.36]
[1745856275645,6.8452,146.04,146.02,6.8459]
[1745856275949,6.1222,146.06,145.96,31.94274861]
[1745856276151,6.1222,146.06,145.98,27.34]
[1745856276453,6.8453,146.04,146.01,6.8462]
[1745856277346,6.1222,146.06,145.97,27.36]
[1745856278254,12.9667,146.06,145.97,27.36]
[1745856278555,6.1222,146.06,145.97,27.36]
[1745856278849,27.36,146.07,146.05,6.8444]
[1745856279050,6.8433,146.08,146.05,6.8444]
[1745856279747,6.8433,146.08,146.01,27.36]
[1745856279948,6.8437,146.07,146.01,27.36]
[1745856280148,2.0217,146.09,146.05,6.8445]
[1745856280556,2.0217,146.09,146.04,6.8448]
[1745856281254,6.8434,146.08,146.05,6.8445]
[1745856281455,2.0217,146.09,146.01,27.36]
[1745856281755,6.8448,146.05,146.02,6.8457]
[1745856283057,6.8448,146.05,146.03,6.8453]
[1745856283251,6.8452,146.04,146.01,27.36]
[1745856283448,2.1159,146.08,145.98,27.36]
[1745856283753,2.1159,146.08,146.01,6.8463]
[1745856283948,6.8458,146.03,146.01,6.8463]
[1745856284154,6.8458,146.03,145.98,27.36]
[1745856284454,51.17474422,146.06,146.0,6.8466]
[1745856285146,51.17474422,146.06,145.99,6.847]
[1745856285351,51.17474422,146.06,145.98,27.36]
[1745856285557,6.8461,146.02,145.98,27.36]
[1745856286257,6.8461,146.02,146.0,6.8467]
[1745856287255,6.8464,146.01,145.99,6.8471]
[1745856287854,6.8462,146.02,145.99,6.8471]
[1745856291560,6.8457,146.03,146.0,6.8468]
[1745856291769,51.17474422,146.06,145.98,27.36]
[1745856291770,27.36,146.06,145.98,27.36]
[1745856291966,2.1159,146.08,145.98,27.36]
[1745856292167,6.8445,146.06,145.98,27.36]
[1745856292467,2.1159,146.08,145.98,27.36]
[1745856292774,6.8448,146.05,146.02,6.8459]
[1745856292970,2.1159,146.08,145.98,27.36]
[1745856293470,6.845,146.04,146.01,6.8461]
[1745856294671,6.8447,146.05,146.02,6.8459]
[1745856294966,6.8447,146.05,145.98,27.36]
[1745856294967,2.1159,146.08,145.98,27.36]
[1745856295371,6.8443,146.06,145.98,27.36]
[1745856295571,2.1159,146.08,145.98,27.36]
[1745856296374,6.8445,146.05,145.98,27.36]
[1745856296673,2.1159,146.08,145.98,27.36]
[1745856297076,6.8439,146.07,146.04,6.8448]
[1745856297472,2.0217,146.09,146.02,27.36]
[1745856297673,27.36,146.12,146.02,27.36]
[1745856297976,27.36,146.12,146.04,23.81474422]
[1745856298174,6.842,146.11,146.08,6.8428]
[1745856300277,1.972,146.14,146.06,27.36]
[1745856300576,27.36,146.19,146.1,23.81474422]
[1745856300775,27.36,146.19,146.1,51.17474422]
[1745856301374,27.36,146.19,146.13,6.8405]
[1745856301571,27.36,146.19,146.1,51.17474422]
[1745856302274,6.841,146.13,146.1,34.2019]
[1745856302574,27.36,146.15,146.07,27.36]
[1745856302768,1.9961,146.14,146.07,27.36]
[1745856303174,25.81084422,146.14,146.04,51.15474422]
[1745856303374,6.8431,146.08,146.05,6.8443]
[1745856303574,27.34,146.11,146.05,6.8443]
[1745856303775,51.15474422,146.11,146.03,7.98568715]
[1745856303974,51.15474422,146.11,146.05,6.8444]
[1745856304176,51.15474422,146.11,146.03,7.98568715]
[1745856304477,6.8431,146.09,146.06,6.8438]
[1745856304978,51.15474422,146.11,146.03,7.98568715]
[1745856305177,23.81474422,146.08,146.03,7.98568715]
[1745856305477,6.8449,146.05,146.03,7.98568715]
[1745856305674,6.8449,146.05,146.02,6.8458]
[1745856305870,2.023,146.07,146.02,6.8458]
[1745856306077,29.343,146.07,146.02,6.8458]
[1745856306275,29.343,146.07,145.97,27.32]
[1745856306476,6.8462,146.02,145.97,27.32]
[1745856306677,23.81474422,146.05,145.98,6.8476]
[1745856307378,23.81474422,146.02,145.97,6.8481]
[1745856307785,23.81474422,146.02,145.98,6.8478]
[1745856308080,23.81474422,146.02,145.94,61.20384861]
[1745856308269,6.8469,146.0,145.97,6.848]
[1745856309079,6.8469,146.0,145.94,29.2611]
[1745856309478,6.8466,146.01,145.94,29.2611]
[1745856309679,6.8466,146.01,145.94,27.32]
[1745856310581,23.81474422,146.02,145.97,6.8479]
[1745856310882,23.81474422,146.02,145.94,27.32]
[1745856311279,6.8467,146.01,145.97,6.848]
[1745856311981,6.847,146.0,145.97,6.848]
[1745856313087,6.8466,146.01,145.94,27.32]
[1745856313279,23.81474422,146.02,145.94,27.32]
[1745856313578,23.81474422,146.02,145.97,6.8479]
[1745856314285,6.847,146.0,145.97,6.8479]
[1745856314588,23.81474422,146.02,145.91,27.34]
[1745856314883,6.8485,145.97,145.91,27.34]
[1745856315585,6.848,145.98,145.91,27.34]
[1745856315781,31.4507,145.99,145.91,27.34]
[1745856315980,6.848,145.98,145.91,27.34]
[1745856316384,6.848,145.98,145.94,6.8494]
[1745856317386,6.848,145.98,145.95,6.8491]
[1745856318686,38.2982,145.99,145.95,6.8491]
[1745856320087,6.8479,145.98,145.95,6.8491]
[1745856320595,31.4507,145.99,145.91,27.34]
[1745856320887,51.15474422,146.05,145.95,23.81474422]
[1745856321087,27.34,146.05,146.01,6.8461]
[1745856321278,27.34,146.05,145.96,27.34]
[1745856321589,6.8453,146.04,145.96,27.34]
[1745856321882,2.0788,146.06,145.96,27.34]
[1745856322184,27.34,146.08,145.98,23.81474422]
[1745856322582,27.34,146.08,146.05,6.8441]
[1745856322791,31.3784,146.11,146.01,51.15474422]
[1745856323087,6.8428,146.09,146.04,6.845]
[1745856323280,6.8428,146.09,146.01,51.15474422]
[1745856323688,6.8424,146.1,146.01,51.15474422]
[1745856323889,31.3784,146.11,146.01,51.15474422]
[1745856324188,6.8434,146.08,146.04,6.8447]
[1745856324389,23.81474422,146.1,146.01,27.34]
[1745856324788,23.81474422,146.1,146.02,6.8456]
[1745856325290,23.81474422,146.07,145.98,27.34]
[1745856325487,27.34,146.06,145.98,27.34]
[1745856326089,2.0758,146.05,145.98,27.34]
[1745856326289,4.0055,146.05,145.98,27.34]
[1745856326489,6.8458,146.03,145.99,6.8473]
[1745856327190,6.8462,146.02,145.98,34.1877]
[1745856327392,23.81474422,146.04,145.95,51.15474422]
[1745856327891,23.81474422,146.01,145.95,27.34]
[1745856328387,23.81474422,146.01,145.94,6.8495]
[1745856328594,23.81474422,146.01,145.91,27.34]
[1745856328893,6.8486,145.97,145.93,6.8498]
[1745856329185,6.8486,145.97,145.91,27.34]
[1745856329391,2.1077,146.0,145.91,27.34]
[1745856329891,6.8476,145.99,145.95,6.8489]
[1745856330491,6.8479,145.98,145.94,6.8495]
[1745856330791,1.9285,145.99,145.91,27.34]
[1745856331486,8.7761,145.99,145.95,6.8489]
[1745856331891,1.9285,145.99,145.91,27.34]
[1745856333289,8.7761,145.99,145.91,27.34]
[1745856333492,1.9285,145.99,145.91,27.34]
[1745856333895,8.7761,145.99,145.95,6.8492]
[1745856334184,8.7761,145.99,145.91,27.34]
[1745856334185,1.9285,145.99,145.91,27.34]
[1745856334385,8.7759,145.99,145.95,6.8489]
[1745856334695,8.7759,145.99,145.91,27.34]
[1745856335491,8.7759,145.99,145.95,6.849]
[1745856336590,6.8478,145.98,145.95,6.849]
[1745856337093,6.8478,145.98,145.94,6.8494]
[1745856337492,6.8483,145.97,145.94,6.8494]
[1745856339693,6.848,145.98,145.95,6.8492]
[1745856339895,3.9646,145.99,145.91,27.34]
[1745856340191,6.8481,145.98,145.91,27.34]
[1745856340494,3.9646,145.99,145.91,27.34]
[1745856340690,6.8488,145.96,145.93,6.8498]
[1745856340887,6.8488,145.96,145.91,27.34]
[1745856342098,6.8495,145.95,145.89,2.0346]
[1745856342498,6.8495,145.95,145.92,6.8506]
[1745856343499,6.8497,145.94,145.92,6.8506]
[1745856343796,51.13474422,145.98,145.92,6.8506]
[1745856343998,6.8493,145.95,145.92,6.8506]
[1745856344398,6.8493,145.95,145.93,6.85]
[1745856345197,6.8493,145.95,145.92,6.8504]
[1745856346293,6.8493,145.95,145.93,6.8501]
[1745856346498,6.8493,145.95,145.89,2.0346]
[1745856346894,6.8493,145.95,145.92,6.8502]
[1745856347394,6.8489,145.96,145.89,2.0346]
[1745856347591,6.8489,145.96,145.93,6.8497]
[1745856347996,6.8489,145.96,145.89,2.0346]
[1745856348400,27.32,145.98,145.89,2.0346]
[1745856349096,27.32,145.98,145.94,6.8494]
[1745856349400,6.8485,145.97,145.94,6.8494]
[1745856349599,27.32,145.98,145.95,6.849]
[1745856349802,27.32,145.98,145.89,2.0346]
[1745856349999,6.8485,145.97,145.89,2.0346]
[1745856350200,27.32,145.98,145.95,6.8491]
[1745856350600,6.8485,145.97,145.94,6.8495]
[1745856350902,27.32,145.98,145.89,2.0346]
[1745856351301,6.849,145.96,145.93,6.8498]
[1745856351502,27.32,145.98,145.89,2.0346]
[1745856351901,27.32,145.98,145.93,6.8499]
[1745856352697,27.32,145.98,145.94,6.8496]
[1745856353204,6.8485,145.97,145.94,6.8496]
[1745856353503,27.32,145.98,145.93,6.85]
[1745856353705,6.85,145.94,145.89,27.32]
[1745856354005,27.32,145.98,145.89,27.32]
[1745856354202,6.8494,145.95,145.92,6.8504]
[1745856354810,6.8494,145.95,145.93,6.8501]
[1745856355306,27.32,145.98,145.89,27.32]
[1745856356007,6.8486,145.97,145.94,6.8493]
[1745856356307,27.32,145.98,145.89,27.32]
[1745856356506,27.32,145.98,145.9,2.0796]
[1745856356707,8.776,145.99,145.9,2.0796]
[1745856356907,1.9285,145.99,145.9,2.0796]
[1745856357109,1.9285,145.99,145.97,6.8483]
[1745856357811,1.9285,145.99,145.96,6.8485]
[1745856358010,27.32,146.01,145.93,27.32]
[1745856358201,2.0345,146.03,145.94,23.81474422]
[1745856358407,34.1647,146.05,146.01,6.8464]
[1745856358606,34.1647,146.05,145.97,51.13474422]
[1745856358803,27.32,146.05,145.97,51.13474422]
[1745856359103,5.8941,146.07,145.97,51.13474422]
[1745856359410,1.9574,146.07,146.0,23.81474422]
[1745856359709,1.9574,146.07,146.01,27.32]
[1745856360112,8.8013,146.07,146.03,6.8452]
[1745856360911,27.32,146.08,146.01,27.32]
[1745856361314,6.8423,146.1,146.01,27.32]
[1745856361612,522.3374,146.11,146.01,27.32]
[1745856362313,23.81474422,146.09,146.01,27.32]
[1745856362706,522.3374,146.11,146.01,27.32]
[1745856363211,6.8431,146.08,146.04,6.8447]
[1745856363414,522.3374,146.11,146.01,27.32]
[1745856364214,6.8431,146.08,146.04,6.8446]
[1745856364414,522.3374,146.11,146.01,27.32]
[1745856364910,522.3374,146.11,146.04,6.845]
[1745856365214,6.8434,146.08,146.04,6.845]
[1745856365716,6.8438,146.07,146.04,6.845]
[1745856366111,23.81474422,146.06,146.01,27.32]
[1745856366317,6.8448,146.05,145.98,29.4103]
[1745856366618,23.81474422,146.06,145.98,29.4103]
[1745856367415,23.81474422,146.06,145.98,27.28]
[1745856367613,6.8458,146.03,145.98,27.28]
[1745856367819,6.8458,146.03,146.0,6.8466]
[1745856368117,6.8454,146.04,146.0,6.8466]
[1745856368316,25.84214422,146.06,146.0,6.8466]
[1745856368517,25.84214422,146.06,145.98,27.28]
[1745856368816,6.8467,146.01,145.98,27.28]
[1745856369212,6.8467,146.01,145.98,6.8475]
[1745856370317,6.8469,146.0,145.96,360.0]
[1745856370520,6.8469,146.0,145.95,27.28]
[1745856371020,51.09474422,146.03,145.95,27.28]
[1745856371520,6.8467,146.01,145.98,6.8477]
[1745856371719,51.09474422,146.03,145.95,27.28]
[1745856372015,6.8463,146.02,145.95,27.28]
[1745856372213,1.936,146.04,145.95,51.09474422]
[1745856372520,8.7813,146.04,146.01,6.8464]
[1745856372819,1.936,146.04,145.95,51.09474422]
[1745856373219,29.3074,146.06,145.95,51.09474422]
[1745856373423,27.28,146.06,145.95,51.09474422]
[1745856373811,34.1244,146.06,146.02,6.8455]
[1745856374115,27.28,146.06,146.0,27.28]
[1745856374418,6.8455,146.03,146.0,6.8465]
[1745856374618,27.28,146.06,145.99,27.28]
[1745856374920,6.8465,146.01,145.98,6.8476]
[1745856375115,23.81474422,146.04,145.96,27.28]
[1745856375620,23.81474422,146.04,145.98,6.8475]
[1745856375920,23.81474422,146.04,145.96,27.28]
[1745856376719,30.65994422,146.04,146.01,6.8462]
[1745856376922,27.28,146.06,145.96,27.28]
[1745856377122,6.8456,146.03,146.0,6.8467]
[1745856377320,23.81474422,146.04,145.96,27.28]
[1745856377622,6.8462,146.02,145.98,6.8474]
[1745856377825,6.8462,146.02,145.96,27.28]
[1745856378123,6.8471,146.0,145.97,6.848]
[1745856378422,23.81474422,146.04,145.96,27.28]
[1745856378812,23.81474422,146.04,145.98,6.8476]
[1745856379023,2.0653,146.03,145.98,6.8476]
[1745856379626,6.8471,146.0,145.98,6.8476]
[1745856379829,6.8471,146.0,145.97,6.8481]
[1745856380220,6.8466,146.01,145.94,1.9432]
[1745856380523,2.1256,146.02,145.94,1.9432]
[1745856380721,23.81474422,146.04,145.94,1.9432]
[1745856380921,6.8457,146.03,145.94,1.9432]
[1745856381225,23.81474422,146.04,145.94,1.9432]
[1745856381428,6.8452,146.04,145.95,23.81474422]
[1745856381617,27.28,146.06,146.04,6.8448]
[1745856382018,6.8441,146.06,145.99,27.28]
[1745856382223,6.3256,146.08,145.99,27.28]
[1745856382425,4.2062,146.08,145.99,27.28]
[1745856382625,2.1256,146.08,146.05,6.8445]
[1745856383029,2.1256,146.08,145.99,27.28]
[1745856383226,27.28,146.09,146.06,6.8438]
[1745856383428,27.28,146.09,146.01,23.81474422]
[1745856383628,25.74734422,146.12,146.01,23.81474422]
[1745856383629,29.2126,146.12,146.01,23.81474422]
[1745856383833,29.2126,146.12,146.04,23.81474422]
[1745856384020,1.9326,146.12,146.05,27.28]
[1745856384224,8.7739,146.12,146.08,6.8428]
[1745856384425,25.74734422,146.12,146.05,27.28]
[1745856385428,25.74734422,146.12,146.05,34.1243]
[1745856385724,25.74734422,146.12,146.05,27.28]
[1745856385931,27.26,146.11,146.02,29.3324]
[1745856386529,6.8435,146.08,146.05,6.8441]
[1745856387030,27.26,146.11,146.02,27.26]
[1745856387230,23.81474422,146.09,146.02,27.26]
[1745856387432,23.81474422,146.06,145.99,27.26]
[1745856387730,23.81474422,146.06,146.03,6.8454]
[1745856387933,23.81474422,146.06,145.99,27.26]
[1745856388230,6.8447,146.05,146.02,6.8458]
[1745856388730,6.8453,146.04,146.01,6.8462]
[1745856388932,23.81474422,146.06,145.99,27.26]
[1745856389136,2.1238,146.05,145.99,27.26]
[1745856389329,6.8456,146.03,145.99,27.26]
[1745856389833,6.8456,146.03,146.01,6.8463]
[1745856390232,6.8452,146.04,146.01,6.8463]
[1745856391333,6.8452,146.04,146.02,6.8459]
[1745856391537,6.8455,146.03,145.99,27.26]
[1745856391931,2.1238,146.05,145.99,27.26]
[1745856392533,6.8457,146.03,146.0,6.8467]
[1745856392837,2.1238,146.05,145.99,27.26]
[1745856393336,6.8452,146.04,145.99,27.26]
[1745856393532,2.1238,146.05,145.99,27.26]
[1745856393835,8.9686,146.05,145.99,27.26]
[1745856394030,2.1238,146.05,145.99,27.26]
[1745856394229,27.26,146.07,145.99,27.26]
[1745856394637,23.81474422,146.06,145.99,27.26]
[1745856395038,1.9801,146.05,145.99,27.26]
[1745856395833,8.8248,146.05,145.99,27.26]
[1745856396034,1.9801,146.05,145.99,27.26]
[1745856396336,6.8452,146.04,146.02,6.8459]
[1745856397035,6.8455,146.03,146.01,6.8464]
[1745856397334,6.8455,146.03,145.99,27.26]
[1745856397539,3.9442,146.05,145.99,27.26]
[1745856398139,3.9442,146.05,146.02,6.8459]
[1745856398641,10.7888,146.05,146.02,6.8459]
[1745856398836,1.9801,146.05,145.99,27.26]
[1745856399138,6.8445,146.06,145.99,27.26]
[1745856399339,2.0513,146.07,146.01,6.8461]
[1745856399640,2.0513,146.07,145.99,27.26]
[1745856399841,6.8449,146.05,146.02,6.8458]
[1745856400033,2.0513,146.07,145.99,27.26]
[1745856400743,6.8446,146.05,145.99,27.26]
[1745856401142,2.0513,146.07,145.99,27.26]
[1745856401941,6.8444,146.06,145.99,27.26]
[1745856402141,6.8444,146.06,146.02,6.8456]
[1745856402543,6.8444,146.06,145.99,27.26]
[1745856402544,8.8951,146.07,145.99,27.26]
[1745856402943,2.0513,146.07,145.99,27.26]
[1745856403140,34.0833,146.08,145.99,27.26]
[1745856403341,1.9641,146.1,146.0,1.9325]
[1745856403639,1.9641,146.1,146.01,23.81474422]
[1745856404442,6.8436,146.07,146.0,1.9325]
[1745856405041,6.8436,146.07,146.04,6.8447]
[1745856405241,6.8433,146.08,146.0,1.9325]
[1745856405539,6.8433,146.08,146.05,6.8443]
[1745856407244,1.9641,146.1,146.03,27.24]
[1745856407745,6.8438,146.07,146.04,6.8448]
[1745856408637,6.8442,146.06,146.03,34.0853]
[1745856409438,6.8442,146.06,146.04,6.8448]
[1745856410546,6.8445,146.05,146.03,6.8453]
[1745856410843,23.81474422,146.09,146.0,29.1725]
[1745856411046,23.81474422,146.09,146.05,6.8445]
[1745856411241,23.81474422,146.09,146.0,29.1725]
[1745856411640,6.8433,146.08,146.05,6.8443]
[1745856412345,6.8428,146.09,146.0,29.1725]
[1745856412544,2.0372,146.13,146.03,23.81474422]
[1745856412743,2.0372,146.13,146.06,23.81474422]
[1745856413044,2.0372,146.13,146.07,27.24]
[1745856413340,29.1751,146.17,146.07,27.24]
[1745856413546,29.1751,146.17,146.07,29.3448]
[1745856414543,29.1751,146.17,146.14,6.8399]
[1745856414740,23.81474422,146.16,146.07,27.24]
[1745856414944,25.92484422,146.16,146.07,27.24]
[1745856415139,1.9441,146.15,146.07,27.24]
[1745856415546,6.8415,146.12,146.08,6.8429]
[1745856415747,23.81474422,146.13,146.07,27.24]
[1745856416348,6.842,146.11,146.07,34.0832]
[1745856416539,1.9441,146.15,146.07,27.24]
[1745856416946,23.81474422,146.22,146.09,23.81474422]
[1745856417142,6.8394,146.16,146.13,6.8406]
[1745856417842,6.8391,146.17,146.14,6.8402]
[1745856419049,27.95974422,146.22,146.12,27.24]
[1745856419243,27.95974422,146.22,146.12,51.05474422]
[1745856419443,2.0236,146.22,146.12,51.05474422]
[1745856420451,25.83834422,146.22,146.12,27.24]
[1745856420750,6.8383,146.19,146.16,6.8391]
[1745856420949,25.83834422,146.22,146.16,6.8391]
[1745856421149,6.8378,146.2,146.16,6.8391]
[1745856421452,23.81474422,146.19,146.12,27.24]
[1745856421950,6.8391,146.17,146.14,6.84]
[1745856422247,23.81474422,146.19,146.12,27.24]
[1745856422448,2.0236,146.22,146.12,27.24]
[1745856423261,23.81474422,146.19,146.12,27.24]
[1745856423548,6.8391,146.17,146.14,6.84]
[1745856423742,23.81474422,146.19,146.14,6.84]
[1745856423946,23.81474422,146.19,146.12,27.24]
[1745856424249,6.8392,146.17,146.12,27.24]
[1745856424748,23.81474422,146.19,146.12,27.24]
[1745856424940,2.0236,146.22,146.12,27.24]
[1745856426251,6.8375,146.2,146.17,6.8387]
[1745856426952,6.838,146.19,146.16,6.8392]
[1745856427147,2.0236,146.22,146.12,27.24]
[1745856427349,23.81474422,146.18,146.12,27.24]
[1745856427649,30.65364422,146.18,146.15,6.8397]
[1745856427947,23.81474422,146.18,146.15,6.8397]
[1745856428350,23.81474422,146.18,146.13,6.8406]
[1745856428647,23.81474422,146.18,146.12,27.24]
[1745856428847,23.81474422,146.18,146.13,6.8407]
[1745856429051,25.94104422,146.18,146.13,6.8407]
[1745856429351,32.77974422,146.18,146.12,27.24]
[1745856429547,2.0236,146.22,146.12,27.24]
[1745856429751,2.0236,146.22,146.12,51.05474422]
[1745856429952,6.8376,146.2,146.18,6.8383]
[1745856430153,2.0236,146.22,146.13,1.9331]
[1745856430353,6.8383,146.19,146.16,6.8391]
[1745856430547,23.81474422,146.2,146.13,1.9331]
[1745856430748,23.81474422,146.2,146.12,27.24]
[1745856431050,6.8387,146.18,146.12,27.24]
[1745856431749,6.8382,146.19,146.12,27.24]
[1745856432348,25.83834422,146.22,146.12,27.24]
[1745856433455,6.8392,146.17,146.12,27.24]
[1745856433854,25.83834422,146.22,146.12,27.24]
[1745856434055,23.81474422,146.19,146.12,27.24]
[1745856434255,51.01474422,146.19,146.12,27.24]
[1745856434550,6.8402,146.15,146.12,6.8408]
[1745856434851,6.8402,146.15,146.05,27.2]
[1745856434852,23.81474422,146.13,146.05,27.2]
[1745856435053,6.8432,146.08,146.06,6.844]
[1745856435259,23.81474422,146.1,146.06,6.844]
[1745856435458,23.81474422,146.1,146.02,553.68490129]
[1745856435658,6.8434,146.08,146.05,6.8444]
[1745856436055,6.8434,146.08,146.02,521.4939]
[1745856436261,6.8437,146.07,146.02,521.4939]
[1745856436456,6.8437,146.07,146.02,519.56]
[1745856436653,6.8437,146.07,146.04,6.8447]
[1745856436856,6.8434,146.08,146.02,27.2]
[1745856437155,23.81474422,146.1,146.02,27.2]
[1745856437360,23.81474422,146.1,146.04,6.8447]
[1745856438159,6.8435,146.08,146.04,6.8447]
[1745856438359,6.8435,146.08,146.05,6.8444]
[1745856438557,6.8437,146.07,146.02,27.2]
[1745856438762,23.81474422,146.1,146.02,27.2]
[1745856439358,6.0425,146.14,146.02,27.2]
[1745856439359,33.2425,146.14,146.02,27.2]
[1745856439560,29.2693,146.14,146.04,23.81474422]
[1745856439755,2.0693,146.14,146.12,6.841]
[1745856439961,2.0693,146.14,146.09,27.2]
[1745856441164,27.2,146.17,146.09,27.2]
[1745856441365,6.8396,146.16,146.09,27.2]
[1745856441664,6.8396,146.16,146.13,6.8407]
[1745856442173,6.8399,146.15,146.09,27.2]
[1745856442362,27.2,146.17,146.09,27.2]
[1745856442868,6.8406,146.14,146.11,6.8414]
[1745856443565,6.8409,146.13,146.1,6.842]
[1745856443767,23.81474422,146.16,146.09,27.2]
[1745856444066,23.81474422,146.16,146.06,27.2]
[1745856444964,1.9717,146.15,146.06,27.2]
[1745856445165,8.8116,146.15,146.12,6.841]
[1745856445364,27.2,146.17,146.07,23.81474422]
[1745856445767,6.8399,146.15,146.12,6.8411]
[1745856446069,6.8399,146.15,146.1,27.2]
[1745856446261,6.8399,146.15,146.11,6.8413]
[1745856446571,6.8396,146.16,146.1,27.2]
[1745856447068,2.0202,146.18,146.1,27.2]
[1745856447273,2.0202,146.18,146.1,51.01474422]
[1745856447568,6.8395,146.16,146.1,51.01474422]
[1745856447767,2.0202,146.18,146.06,14.1228]
[1745856447967,23.81474422,146.15,146.03,27.2]
[1745856448272,23.81474422,146.12,146.03,27.2]
[1745856448471,29.2515,146.11,146.03,27.2]
[1745856452973,2.0515,146.11,146.03,27.2]
[1745856456172,23.81474422,146.1,146.01,1.9401]
[1745856456376,23.81474422,146.07,146.0,27.2]
[1745856456577,51.01474422,146.07,146.0,27.2]
[1745856456777,51.01474422,146.07,145.97,887.68775032]
[1745856456972,4.0338,146.06,145.97,887.68775032]
[1745856459379,4.0338,146.06,145.97,879.64]